bitfinex/quotes_SOLUSD_20250130
["timestamp","ask_amount","ask_price","bid_price","bid_amount"]
[1738244832826,13.41184853,239.91,239.85,12.52123922]
[1738244833034,0.12549,239.93,239.85,12.52123922]
[1738244833841,12.52123922,239.98,239.9,12.52123922]
[1738244834002,12.52123922,240.02,239.95,12.52123922]
[1738244834397,12.64672922,240.0,239.93,12.52123922]
[1738244834623,12.52123922,239.98,239.89,22.94263922]
[1738244835003,12.52123922,239.98,239.91,12.52123922]
[1738244835224,12.52123922,240.02,239.93,12.52123922]
[1738244835417,0.063,239.97,239.95,12.52123922]
[1738244836335,0.063,239.97,239.93,12.52123922]
[1738244840240,0.063,239.97,239.9,4.1684]
[1738244840241,12.58423922,239.97,239.9,16.68963922]
[1738244840536,13.41184853,239.95,239.89,12.52123922]
[1738244840715,12.52123922,239.92,239.85,12.52123922]
[1738244840910,13.41184853,239.89,239.83,12.52123922]
[1738244841115,12.52123922,239.9,239.83,12.52123922]
[1738244841314,12.52123922,239.92,239.83,12.52123922]
[1738244841833,13.41184853,239.91,239.83,12.52123922]
[1738244842011,13.41184853,239.91,239.84,4.1694]
[1738244842637,25.93308775,239.91,239.84,4.1694]
[1738244843663,13.41184853,239.91,239.84,16.69063922]
[1738244845144,12.52123922,239.91,239.83,12.52123922]
[1738244846364,12.52123922,239.88,239.81,12.52123922]
[1738244846549,12.52123922,239.87,239.8,16.69133922]
[1738244846744,25.93308775,239.86,239.8,4.1701]
[1738244847071,12.52123922,239.85,239.8,4.1701]
[1738244847242,12.52123922,239.86,239.78,12.52123922]
[1738244847431,25.93308775,239.86,239.79,4.1703]
[1738244847832,13.41184853,239.86,239.84,0.03]
[1738244848343,25.93308775,239.85,239.84,0.03]
[1738244849265,30.35326775,239.85,239.84,0.03]
[1738244849565,32.01156775,239.85,239.84,0.03]
[1738244852565,27.71687775,239.85,239.84,0.03]
[1738244852733,12.52123922,239.89,239.84,0.03]
[1738244852937,12.52123922,239.85,239.84,0.03]
[1738244853153,12.64672922,239.85,239.84,0.03]
[1738244853948,16.81592922,239.85,239.84,0.03]
[1738244854155,30.22777775,239.85,239.84,0.03]
[1738244856144,30.35326775,239.85,239.84,0.03]
[1738244857049,13.41184853,239.85,239.84,0.03]
[1738244857260,12.52123922,239.89,239.84,0.03]
[1738244857766,12.52123922,239.88,239.84,0.03]
[1738244858381,0.12549,239.85,239.84,0.03]
[1738244858557,26.05857775,239.85,239.84,0.03]
[1738244859781,26.18406775,239.85,239.84,0.03]
[1738244861711,30.35326775,239.85,239.84,0.03]
[1738244863964,13.41184853,239.85,239.84,0.03]
[1738244867678,17.58104853,239.85,239.84,0.03]
[1738244867883,17.70653853,239.85,239.84,0.03]
[1738244868093,0.063,239.88,239.84,0.03]
[1738244868256,13.47484853,239.88,239.84,0.03]
[1738244868688,13.41184853,239.86,239.84,0.03]
[1738244868970,13.47484853,239.88,239.84,0.03]
[1738244868971,25.93308775,239.85,239.84,0.03]
[1738244869170,13.41184853,239.85,239.84,0.03]
[1738244871964,30.22777775,239.85,239.84,0.03]
[1738244872169,26.05857775,239.85,239.84,0.03]
[1738244872367,26.12157775,239.85,239.84,0.03]
[1738244872576,21.62079539,239.85,239.84,0.03]
[1738244873462,25.78999539,239.85,239.84,0.03]
[1738244874785,25.91548539,239.85,239.84,0.03]
[1738244877183,0.063,239.85,239.84,0.03]
[1738244879489,8.08345686,239.85,239.84,0.03]
[1738244879694,0.063,239.85,239.84,0.03]
[1738244880399,8.08345686,239.85,239.84,0.03]
[1738244880901,21.49530539,239.85,239.84,0.03]
[1738244881087,21.62079539,239.85,239.84,0.03]
[1738244881287,25.91548539,239.85,239.84,0.03]
[1738244885297,21.74628539,239.85,239.84,0.03]
[1738244887406,21.62079539,239.85,239.84,0.03]
[1738244889311,21.49530539,239.85,239.84,0.03]
[1738244890510,13.47484853,239.85,239.84,0.03]
[1738244890689,0.063,239.85,239.84,0.03]
[1738244896124,0.063,239.85,239.84,4.1994]
[1738244896615,0.063,239.85,239.84,12.21985686]
[1738244898698,0.063,239.85,239.84,4.1994]
[1738244898998,0.063,239.85,239.84,12.21985686]
[1738244900922,0.063,239.85,239.84,11.10185686]
[1738244901121,0.063,239.85,239.84,8.02045686]
[1738244902032,0.063,239.85,239.84,12.18985686]
[1738244902203,0.063,239.85,239.84,8.02045686]
[1738244903522,0.063,239.85,239.84,12.18985686]
[1738244908099,0.063,239.85,239.84,12.21985686]
[1738244909620,0.063,239.85,239.84,8.05045686]
[1738244911408,0.063,239.85,239.84,12.21985686]
[1738244912218,0.063,239.85,239.84,13.21985686]
[1738244913332,0.063,239.85,239.84,12.21985686]
[1738244914141,0.063,239.85,239.84,8.05045686]
[1738244917042,0.063,239.85,239.84,12.21985686]
[1738244918753,0.063,239.85,239.84,13.21985686]
[1738244921137,0.063,239.85,239.84,12.21985686]
[1738244930547,0.0001,239.85,239.84,12.84506261]
[1738244932167,0.12549,239.99,239.87,21.0]
[1738244932324,0.12549,239.99,239.96,8.02045686]
[1738244933346,0.12549,239.99,239.94,8.02045686]
[1738244934051,0.25098,239.96,239.9,8.02045686]
[1738244935351,0.25098,239.96,239.9,12.18875686]
[1738244936750,13.66282853,239.96,239.9,12.18875686]
[1738244936957,17.83022853,239.96,239.88,8.02045686]
[1738244937246,13.66282853,239.96,239.89,8.02045686]
[1738244937634,0.25098,239.96,239.91,8.02045686]
[1738244937831,1.611,239.97,239.94,8.02045686]
[1738244938232,1.611,239.97,239.93,8.02045686]
[1738244939154,1.611,239.97,239.92,8.02045686]
[1738244939748,1.611,239.97,239.93,8.02045686]
[1738244940047,1.611,239.97,239.92,8.02045686]
[1738244940243,0.12549,239.96,239.9,8.02045686]
[1738244940551,0.12549,239.96,239.91,8.02045686]
[1738244941133,4.29279,239.96,239.91,8.02045686]
[1738244941330,0.12549,239.95,239.89,8.02045686]
[1738244942237,0.12549,239.94,239.87,8.02045686]
[1738244942754,0.12549,239.93,239.87,8.02045686]
[1738244943270,4.29349,239.93,239.87,8.02045686]
[1738244944973,8.02045686,239.9,239.84,0.03]
[1738244945136,0.12549,239.89,239.84,0.03]
[1738244946056,25.60040539,239.92,239.85,8.02045686]
[1738244946368,17.57994853,239.92,239.85,8.02045686]
[1738244946534,0.12549,239.91,239.85,8.02045686]
[1738244947144,4.1684,239.9,239.85,8.02045686]
[1738244947347,4.1684,239.9,239.87,8.02045686]
[1738244947536,4.1681,239.92,239.87,8.02045686]
[1738244947865,4.1681,239.92,239.85,8.02045686]
[1738244948072,4.1681,239.92,239.87,8.02045686]
[1738244948868,0.12549,239.91,239.87,8.02045686]
[1738244949365,4.29379,239.91,239.87,8.02045686]
[1738244951441,4.1678,239.93,239.87,8.02045686]
[1738244951643,8.08345686,239.96,239.89,8.02045686]
[1738244951845,13.66282853,239.94,239.89,8.02045686]
[1738244952735,0.063,239.96,239.89,8.02045686]
[1738244952975,0.063,239.96,239.93,8.02045686]
[1738244953286,0.063,239.96,239.95,8.02045686]
[1738244957279,0.063,239.96,239.95,12.18795686]
[1738244961807,0.063,239.96,239.93,12.18815686]
[1738244962364,0.063,239.96,239.89,8.02045686]
[1738244962568,8.02045686,239.95,239.88,0.03]
[1738244962998,8.02045686,239.95,239.88,4.1987]
[1738244963378,8.02045686,239.95,239.89,8.02045686]
[1738244963892,8.02045686,239.95,239.89,12.18895686]
[1738244964393,0.063,239.96,239.89,12.18895686]
[1738244964575,4.35579,239.96,239.89,8.02045686]
[1738244964976,0.18849,239.96,239.89,12.18895686]
[1738244965693,0.12549,239.95,239.89,12.18895686]
[1738244970293,0.12549,239.95,239.91,8.02045686]
[1738244971000,0.12549,239.95,239.9,8.02045686]
[1738244972094,4.35579,239.96,239.9,8.02045686]
[1738244972392,0.063,239.96,239.95,8.02045686]
[1738244974493,0.063,239.96,239.95,12.18795686]
[1738244976307,0.063,239.96,239.94,8.02045686]
[1738244976603,0.063,239.96,239.93,8.02045686]
[1738244977805,0.063,239.96,239.91,12.18865686]
[1738244978108,0.063,239.96,239.91,8.02045686]
[1738244978605,0.063,239.96,239.93,8.02045686]
[1738244978904,0.063,239.96,239.92,8.02045686]
[1738244979709,0.063,239.96,239.93,8.02045686]
[1738244980705,0.063,239.96,239.95,8.02045686]
[1738244981593,0.063,239.96,239.95,12.18795686]
[1738244983809,0.063,240.05,239.98,22.0]
[1738244983982,0.063,240.05,240.03,8.02045686]
[1738244984313,0.063,240.05,240.03,8.64512902]
[1738244985603,0.063,240.05,240.03,12.81122902]
[1738244987315,0.063,240.05,240.03,14.81122902]
[1738244987690,0.063,240.05,240.04,8.02045686]
[1738244989483,0.063,240.17,240.11,1.0]
[1738244989687,0.063,240.17,240.16,8.02045686]
[1738244990614,0.063,240.17,240.16,12.18425686]
[1738244993921,0.063,240.2,240.19,21.0]
[1738244994118,0.063,240.21,240.2,8.02045686]
[1738244996191,0.063,240.21,240.2,12.18355686]
[1738245000795,0.063,240.21,240.19,20.0]
[1738245000796,0.063,240.21,240.18,8.02045686]
[1738245000994,0.063,240.21,240.15,8.02045686]
[1738245001228,12.24645686,240.21,240.13,8.02045686]
[1738245002022,8.02045686,240.2,240.13,8.02045686]
[1738245002530,4.226,240.21,240.1,4.1649]
[1738245002830,12.49388982,240.2,240.13,12.49388982]
[1738245003636,12.49388982,240.19,240.12,12.49388982]
[1738245003935,12.49388982,240.15,240.08,16.65898982]
[1738245004105,12.49388982,240.17,240.1,12.49388982]
[1738245004299,12.49388982,240.18,240.1,12.49388982]
[1738245004620,12.49388982,240.17,240.1,12.49388982]
[1738245005132,12.49388982,240.17,240.1,16.65878982]
[1738245005333,12.49388982,240.17,240.1,4.1649]
[1738245005506,12.61937982,240.14,240.09,4.165]
[1738245005708,12.61937982,240.1,240.03,16.68978982]
[1738245005915,12.49388982,240.1,240.03,16.68978982]
[1738245006116,12.61937982,240.12,240.05,12.49388982]
[1738245006433,1.5788,240.15,240.11,12.49388982]
[1738245006595,1.7113,240.21,240.14,12.49388982]
[1738245006799,1.7113,240.21,240.18,12.49388982]
[1738245007008,1.7113,240.21,240.19,12.49388982]
[1738245007209,1.7113,240.21,240.2,12.49388982]
[1738245007412,0.063,240.21,240.2,12.49388982]
[1738245008133,0.063,240.21,240.2,13.11812205]
[1738245009503,0.063,240.21,240.2,17.28122205]
[1738245010935,0.063,240.21,240.2,4.78733223]
[1738245011129,0.063,240.21,240.2,17.28122205]
[1738245015129,0.063,240.21,240.2,4.1631]
[1738245015304,0.063,240.21,240.18,12.49388982]
[1738245015709,0.063,240.21,240.19,12.49388982]
[1738245016145,0.063,240.21,240.18,12.49388982]
[1738245016307,0.063,240.21,240.19,0.03]
[1738245019518,12.61937982,240.2,240.19,0.03]
[1738245020541,0.063,240.21,240.19,0.03]
[1738245020915,0.063,240.21,240.19,12.52388982]
[1738245021636,0.063,240.21,240.19,13.1482325]
[1738245021936,0.063,240.21,240.2,4.1631]
[1738245022123,0.063,240.21,240.2,36.65698982]
[1738245024622,0.063,240.21,240.2,24.1631]
[1738245024829,0.063,240.21,240.19,0.03]
[1738245026217,12.61937982,240.2,240.19,0.03]
[1738245026421,14.39166982,240.2,240.19,0.03]
[1738245027550,27.80351835,240.2,240.19,0.03]
[1738245028440,27.92900835,240.2,240.19,0.03]
[1738245028750,32.09210835,240.2,240.19,0.03]
[1738245029545,0.37647,240.19,240.05,16.65948982]
[1738245029711,12.49388982,240.1,240.05,4.1656]
[1738245030241,12.49388982,240.11,240.05,4.1656]
[1738245032747,0.12549,240.11,240.05,4.1656]
[1738245033121,0.02,279.84,240.07,12.49388982]
[1738245033122,12.49388982,240.15,240.07,12.49388982]
[1738245033327,12.49388982,240.18,240.11,12.49388982]
[1738245033527,12.61937982,240.16,240.09,12.49388982]
[1738245034254,12.49388982,240.15,240.08,12.49388982]
[1738245034445,12.49388982,240.14,240.08,4.1652]
[1738245036955,12.49388982,240.15,240.08,4.1652]
[1738245037136,12.49388982,240.15,240.08,36.65908982]
[1738245037340,0.12549,240.15,240.08,36.65908982]
[1738245038450,0.12549,240.15,240.09,12.49388982]
[1738245038638,0.12549,240.16,240.1,4.1649]
[1738245038958,12.61937982,240.16,240.1,4.1649]
[1738245039864,12.61937982,240.16,240.08,32.49388982]
[1738245040151,12.61937982,240.16,240.09,4.1651]
[1738245041753,12.49388982,240.15,240.09,4.1651]
[1738245041957,12.49388982,240.12,240.07,4.1652]
[1738245042133,12.49388982,240.11,240.07,4.1652]
[1738245042457,12.49388982,240.13,240.07,4.1652]
[1738245043253,12.49388982,240.17,240.1,12.49388982]
[1738245043456,0.12549,240.16,240.11,12.49388982]
[1738245043638,0.12549,240.16,240.1,12.49388982]
[1738245044958,12.61937982,240.16,240.08,12.49388982]
[1738245045128,12.61937982,240.16,240.09,4.1651]
[1738245045329,0.12549,240.15,240.09,4.1651]
[1738245047051,12.55688982,240.19,240.11,12.49388982]
[1738245047232,0.063,240.19,240.14,12.49388982]
[1738245047433,0.063,240.19,240.17,12.49388982]
[1738245047635,0.063,240.19,240.18,12.49388982]
[1738245048768,0.063,240.19,240.18,16.65738982]
[1738245049055,0.063,240.19,240.18,4.1635]
[1738245049929,0.063,240.19,240.18,17.28179551]
[1738245054036,0.063,240.19,240.18,16.65738982]
[1738245056260,0.063,240.19,240.18,24.1635]
[1738245057771,0.063,240.19,240.18,20.0]
[1738245058562,0.063,240.19,240.18,24.1635]
[1738245059658,0.063,240.19,240.16,4.1637]
[1738245060163,0.063,240.19,240.16,24.1637]
[1738245060353,0.063,240.19,240.16,4.1637]
[1738245060552,0.063,240.19,240.14,20.0]
[1738245060760,12.55688982,240.19,240.11,22.90538982]
[1738245060959,12.49388982,240.17,240.1,16.65878982]
[1738245061267,12.49388982,240.15,240.1,4.1649]
[1738245061435,12.49388982,240.15,240.1,20.0]
[1738245062069,12.49388982,240.15,240.09,4.195]
[1738245063568,12.49388982,240.16,240.09,20.03]
[1738245063747,12.68237982,240.19,240.11,12.49388982]
[1738245064072,0.063,240.19,240.12,12.49388982]
[1738245064442,12.55688982,240.19,240.12,12.49388982]
[1738245064780,12.49388982,240.18,240.15,0.03]
[1738245064945,12.61937982,240.16,240.15,0.03]
[1738245066051,30.19502835,240.16,240.15,0.03]
[1738245067250,12.61937982,240.16,240.15,0.03]
[1738245067668,0.12549,240.16,240.15,0.03]
[1738245067976,12.74486982,240.16,240.15,0.03]
[1738245068180,30.32051835,240.16,240.15,0.03]
[1738245071559,16.90866982,240.16,240.15,0.03]
[1738245072663,12.74486982,240.16,240.15,0.03]
[1738245072858,0.063,240.19,240.15,0.03]
[1738245073280,0.063,240.19,240.15,12.52388982]
[1738245073784,0.063,240.19,240.15,0.03]
[1738245074487,12.61937982,240.16,240.15,0.03]
[1738245076381,12.74486982,240.16,240.15,0.03]
[1738245076585,12.55688982,240.19,240.15,0.03]
[1738245076774,0.063,240.19,240.15,0.03]
[1738245077488,0.12549,240.18,240.15,0.03]
[1738245077668,0.25098,240.16,240.15,0.03]
[1738245077987,0.12549,240.16,240.15,0.03]
[1738245078183,12.55688982,240.19,240.15,0.03]
[1738245078385,0.063,240.19,240.15,0.03]
[1738245084165,0.063,240.19,240.15,12.52388982]
[1738245084365,0.063,240.19,240.18,12.49388982]
[1738245085367,0.063,240.19,240.18,16.65738982]
[1738245091195,0.063,240.19,240.16,16.65758982]
[1738245091499,0.063,240.19,240.15,0.03]
[1738245092786,12.61937982,240.18,240.15,0.03]
[1738245093488,12.61937982,240.16,240.15,0.03]
[1738245093801,12.74486982,240.16,240.15,0.03]
[1738245094190,26.15671835,240.16,240.15,0.03]
[1738245095190,30.32051835,240.16,240.15,0.03]
[1738245095511,31.97461835,240.16,240.15,0.03]
[1738245095809,0.12549,240.12,240.09,0.03]
[1738245096114,12.49388982,240.1,240.09,0.03]
[1738245097083,12.61937982,240.1,240.09,0.03]
[1738245097892,0.12549,240.1,240.09,0.03]
[1738245101409,12.49388982,240.14,240.09,0.03]
[1738245101707,14.13618982,240.21,240.13,12.49388982]
[1738245101924,1.6423,240.21,240.14,12.49388982]
[1738245102996,0.12549,240.2,240.13,12.49388982]
[1738245103305,0.12549,240.2,240.13,16.65818982]
[1738245104306,0.12549,240.2,240.13,12.49388982]
[1738245104800,0.25098,240.16,240.1,4.1647]
[1738245106187,4.41488,240.16,240.09,0.03]
[1738245106392,12.49388982,240.11,240.09,0.03]
[1738245106610,0.12549,240.1,240.09,0.03]
[1738245107214,13.53733853,240.1,240.09,0.03]
[1738245107415,15.12093853,240.1,240.09,0.03]
[1738245107815,19.28583853,240.1,240.09,0.03]
[1738245108325,31.77972835,240.1,240.09,0.03]
[1738245109797,31.90521835,240.1,240.09,0.03]
[1738245111933,32.03070835,240.1,240.09,0.03]
[1738245115504,1.83458,240.1,240.09,0.03]
[1738245115822,0.12549,240.1,240.09,0.03]
[1738245116025,12.74486982,240.1,240.09,0.03]
[1738245116594,30.32161835,240.1,240.09,0.03]
[1738245119022,16.90976982,240.1,240.09,0.03]
[1738245119230,0.25098,240.1,240.09,0.03]
[1738245120223,4.41588,240.1,240.09,0.03]
[1738245120833,0.25098,240.1,240.09,0.03]
[1738245121034,12.74486982,240.1,240.09,0.03]
[1738245121325,0.063,240.16,240.09,0.03]
[1738245121527,0.063,240.16,240.11,12.49388982]
[1738245122312,0.12549,240.13,240.09,0.03]
[1738245123130,0.063,240.16,240.09,12.52388982]
[1738245123336,0.063,240.16,240.13,12.49388982]
[1738245125125,0.063,240.16,240.15,12.49388982]
[1738245125448,0.063,240.16,240.15,19.52044004]
[1738245125614,0.063,240.19,240.18,12.49388982]
[1738245126139,0.063,240.19,240.15,18.89598982]
[1738245127436,0.063,240.19,240.15,23.05998982]
[1738245128926,0.063,240.19,240.15,16.65788982]
[1738245129128,0.063,240.19,240.15,12.49388982]
[1738245129933,0.063,240.19,240.15,16.65778982]
[1738245130125,0.063,240.19,240.17,12.49388982]
[1738245130752,0.063,240.19,240.15,12.49388982]
[1738245130928,0.25098,240.18,240.12,4.1644]
[1738245131242,0.12549,240.18,240.12,16.65828982]
[1738245131545,0.063,240.19,240.12,36.65828982]
[1738245131744,0.063,240.19,240.16,12.49388982]
[1738245132860,0.063,240.19,240.17,4.1637]
[1738245133856,0.18849,240.19,240.13,16.65808982]
[1738245134354,0.25098,240.18,240.11,16.65848982]
[1738245136252,4.41458,240.18,240.11,12.49388982]
[1738245136455,0.12549,240.15,240.09,4.1949]
[1738245136624,0.25098,240.14,240.09,0.03]
[1738245136824,0.12549,240.12,240.09,0.03]
[1738245137239,0.12549,240.13,240.09,0.03]
[1738245137438,0.12549,240.13,240.09,4.195]
[1738245137640,0.12549,240.13,240.09,0.03]
[1738245139757,12.49388982,240.17,240.09,0.03]
[1738245139963,12.49388982,240.17,240.1,12.49388982]
[1738245140442,0.12549,240.16,240.1,12.49388982]
[1738245141369,0.12549,240.16,240.11,4.1647]
[1738245141667,0.25098,240.14,240.09,0.03]
[1738245143259,0.12549,240.1,240.09,0.03]
[1738245143964,0.12549,240.11,240.09,0.03]
[1738245144151,12.49388982,240.16,240.09,0.03]
[1738245144464,1.6266,240.19,240.12,12.49388982]
[1738245144963,21.6266,240.19,240.14,12.49388982]
[1738245145272,0.063,240.19,240.16,12.49388982]
[1738245145970,0.063,240.19,240.18,12.49388982]
[1738245147567,0.063,240.19,240.18,16.65738982]
[1738245148580,0.063,240.19,240.18,12.49388982]
[1738245150371,0.063,240.19,240.16,12.49388982]
[1738245152480,0.063,240.19,240.1,5.7488]
[1738245152769,0.063,240.19,240.13,12.49388982]
[1738245153071,16.72028982,240.19,240.11,12.49388982]
[1738245153271,12.49388982,240.18,240.1,12.49388982]
[1738245153655,0.12549,240.17,240.1,12.49388982]
[1738245153876,0.12549,240.17,240.09,0.03]
[1738245153877,12.49388982,240.16,240.09,0.03]
[1738245154671,12.49388982,240.12,240.09,0.03]
[1738245154846,12.49388982,240.13,240.09,0.03]
[1738245155049,4.1645,240.13,240.09,0.03]
[1738245155756,16.65838982,240.13,240.09,0.03]
[1738245156284,0.12549,240.12,240.09,0.03]
[1738245156451,4.1642,240.15,240.09,12.52388982]
[1738245156869,4.1642,240.15,240.1,12.49388982]
[1738245157050,4.1642,240.15,240.09,0.03]
[1738245157547,0.12549,240.14,240.09,12.52388982]
[1738245158479,0.25098,240.15,240.09,12.52388982]
[1738245159663,0.12549,240.15,240.09,16.68888982]
[1738245159852,12.55688982,240.19,240.11,12.49388982]
[1738245160052,0.12549,240.18,240.11,12.49388982]
[1738245160679,12.49388982,240.17,240.09,16.68888982]
[1738245160853,0.12549,240.16,240.09,16.68888982]
[1738245161052,0.12549,240.14,240.09,16.68888982]
[1738245161274,0.25098,240.14,240.09,0.03]
[1738245167282,12.49388982,240.18,240.1,12.49388982]
[1738245167581,12.55688982,240.19,240.11,12.49388982]
[1738245167778,12.55688982,240.19,240.09,0.03]
[1738245167779,12.49388982,240.17,240.09,12.52388982]
[1738245168154,0.12549,240.16,240.09,12.52388982]
[1738245169180,0.25098,240.16,240.1,4.1649]
[1738245169362,30.32061835,240.16,240.09,4.195]
[1738245169777,0.12549,240.13,240.09,4.195]
[1738245170582,0.12549,240.13,240.09,0.03]
[1738245175990,0.12549,240.14,240.09,0.03]
[1738245176588,0.12549,240.15,240.09,4.1951]
[1738245176809,0.063,240.16,240.1,12.49388982]
[1738245177779,12.55688982,240.16,240.09,4.1951]
[1738245177982,0.12549,240.15,240.09,4.1951]
[1738245182481,0.12549,240.15,240.09,0.03]
[1738245182683,8.12567418,240.15,240.09,0.03]
[1738245185709,0.12549,240.14,240.09,0.03]
[1738245186522,0.063,240.16,240.12,8.00018418]
[1738245186686,0.063,240.16,240.14,8.00018418]
[1738245188008,0.063,240.16,240.15,4.164]
[1738245189410,0.063,240.16,240.15,32.16418418]
[1738245191206,0.063,240.16,240.15,32.78857261]
[1738245191795,0.0001,240.16,240.15,32.78857261]
[1738245192823,0.0001,240.16,240.15,46.32591114]
[1738245194727,0.0001,240.16,240.15,50.80825792]
[1738245203844,0.0001,240.16,240.15,37.27091939]
[1738245205429,0.0001,240.16,240.13,12.48253096]
[1738245205632,0.0001,240.16,240.13,16.64673096]
[1738245206023,0.0001,240.16,240.15,20.0]
[1738245207727,0.0001,240.16,240.13,16.64673096]
[1738245208050,0.0001,240.16,240.15,0.063]
[1738245209849,0.0001,240.16,240.15,4.227]
[1738245210547,0.0001,240.16,240.15,0.063]
[1738245211556,12.48263096,240.16,240.15,0.063]
[1738245212433,0.0001,240.16,240.15,0.063]
[1738245214629,0.12559,240.16,240.15,0.063]
[1738245216660,0.0001,240.16,240.15,0.063]
[1738245216832,0.0001,240.16,240.15,12.22445848]
[1738245227162,0.0001,240.16,240.15,26.38613413]
[1738245229614,0.0001,240.16,240.15,12.22445848]
[1738245230592,0.0001,240.16,240.15,4.227]
[1738245233689,0.0001,240.16,240.15,0.063]
[1738245239195,0.0001,240.16,240.15,4.227]
[1738245239366,0.0001,240.16,240.15,12.22445848]
[1738245240477,0.0001,240.16,240.15,14.06613848]
[1738245240678,0.0001,240.19,240.18,42.66028701]
[1738245240887,0.063,240.3,240.19,0.12549]
[1738245241092,0.063,240.3,240.28,7.99745848]
[1738245241980,0.063,240.3,240.28,12.15925848]
[1738245245476,0.063,240.3,240.28,7.99745848]
[1738245245882,0.063,240.3,240.26,12.15945848]
[1738245247492,7.99745848,240.28,240.21,7.99745848]
[1738245247975,7.99745848,240.27,240.2,7.99745848]
[1738245248376,7.99745848,240.25,240.19,4.1633]
[1738245248603,7.99745848,240.24,240.19,4.1633]
[1738245249706,7.99745848,240.24,240.18,4.1635]
[1738245249883,0.25098,240.25,240.18,12.16095848]
[1738245250202,1.5538,240.26,240.23,7.99745848]
[1738245251298,0.063,240.29,240.24,7.99745848]
[1738245251477,0.063,240.29,240.25,7.99745848]
[1738245251811,0.063,240.29,240.26,7.99745848]
[1738245252023,0.063,240.29,240.28,7.99745848]
[1738245252683,0.063,240.29,240.28,12.47695211]
[1738245253877,0.063,240.29,240.28,16.63875211]
[1738245254686,0.063,240.29,240.28,17.26283364]
[1738245254885,0.063,240.3,240.29,0.12549]
[1738245255204,0.063,240.3,240.29,46.01429064]
[1738245258427,0.063,240.3,240.29,50.17589064]
[1738245259112,0.063,240.3,240.29,36.63855211]
[1738245262699,0.063,240.3,240.29,50.79988425]
[1738245263001,0.063,240.3,240.29,50.92537425]
[1738245263206,0.063,240.37,240.3,13.53733853]
[1738245263405,0.063,240.37,240.36,12.47695211]
[1738245263794,0.063,240.37,240.36,16.63735211]
[1738245264188,0.063,240.37,240.33,12.47695211]
[1738245264618,0.063,240.37,240.32,12.47695211]
[1738245264910,0.063,240.37,240.34,12.47695211]
[1738245265712,0.063,240.37,240.36,12.47695211]
[1738245266708,0.063,240.37,240.36,26.01429064]
[1738245266906,0.063,240.37,240.36,38.49124275]
[1738245267497,0.063,240.4,240.39,20.0]
[1738245267709,0.063,240.4,240.39,37.26059916]
[1738245269422,0.063,240.4,240.39,50.79793769]
[1738245270335,0.063,240.4,240.39,185.74891769]
[1738245270511,0.063,240.44,240.42,33.66282853]
[1738245270839,0.063,240.44,240.42,181.46336013]
[1738245271132,0.0001,240.43,240.42,180.83978064]
[1738245271635,0.0001,240.43,240.42,186.25006064]
[1738245271797,0.0001,240.43,240.42,185.25006064]
[1738245272294,0.0001,240.43,240.42,186.25006064]
[1738245272529,0.0001,240.43,240.42,184.99908064]
[1738245274728,0.0001,240.43,240.42,185.99908064]
[1738245274939,0.03,240.54,240.47,13.53733853]
[1738245275238,0.03,240.54,240.53,12.47695211]
[1738245277532,0.03,240.54,240.53,16.63435211]
[1738245278210,0.03,240.54,240.53,12.47695211]
[1738245278928,0.03,240.54,240.53,16.63435211]
[1738245280596,0.03,240.54,240.53,30.17169064]
[1738245283428,0.03,240.54,240.53,30.29718064]
[1738245284720,0.03,240.54,240.53,30.17169064]
[1738245285424,0.03,240.54,240.53,16.63435211]
[1738245288627,0.03,240.54,240.51,12.47695211]
[1738245289653,0.03,240.54,240.51,16.63465211]
[1738245290430,0.03,240.54,240.51,12.47695211]
[1738245290628,0.03,240.54,240.5,4.158]